bitfinex-derivatives/quotes_ETHF0:USTF0_20250919
["timestamp","ask_amount","ask_price","bid_price","bid_amount"]
[1758294653663,0.71770359,4470.6,4470.5,1.1921]
[1758294654054,0.71770359,4470.6,4470.1,0.8612]
[1758294654257,36.235,4471.6,4469.8,2.2032]
[1758294654258,3.2078,4470.2,4469.8,2.2032]
[1758294654560,1.18341359,4470.1,4469.8,2.2032]
[1758294654761,2.12530359,4470.0,4469.8,2.2032]
[1758294655060,0.95970359,4469.9,4469.8,1.0504]
[1758294655257,0.95970359,4469.9,4469.8,1.9116]
[1758294656158,5.85970359,4469.9,4469.3,0.0223]
[1758294656356,5.85970359,4469.9,4469.1,0.8612]
[1758294656357,3.2078,4469.4,4469.1,0.8612]
[1758294656559,0.95970359,4469.3,4469.1,0.8612]
[1758294656756,36.24,4469.8,4469.6,0.8612]
[1758294656957,0.96182875,4469.7,4469.6,0.8612]
[1758294658159,4.96182875,4469.7,4469.2,0.8612]
[1758294658359,3.2078,4469.3,4469.1,0.8264]
[1758294658665,0.96182875,4469.2,4469.1,0.8264]
[1758294659255,0.45700507,4469.2,4469.1,0.8264]
[1758294659566,0.242,4469.2,4469.1,4.8264]
[1758294659763,36.24,4469.8,4469.6,0.8495]
[1758294659959,0.96216292,4469.7,4469.6,0.8495]
[1758294661556,4.96216292,4469.7,4469.5,0.3308]
[1758294661767,0.72016292,4469.6,4469.2,0.8495]
[1758294662066,3.2078,4469.4,4469.1,0.8495]
[1758294662371,0.96216292,4469.3,4468.8,2.2379]
[1758294662561,3.2078,4468.9,4468.5,0.3309]
[1758294662868,0.96216292,4468.8,4468.5,0.3309]
[1758294663165,0.72016292,4468.7,4468.6,0.8495]
[1758294664766,0.72016292,4468.7,4468.0,0.3309]
[1758294665061,3.2078,4468.1,4468.0,1.1804]
[1758294665265,4.16996292,4468.1,4468.0,1.1804]
[1758294666461,4.16996292,4468.1,4467.8,2.2385]
[1758294666664,0.72016292,4468.0,4467.8,3.088]
[1758294666864,0.96216292,4467.9,4467.8,3.088]
[1758294667063,0.45711608,4467.9,4467.8,3.088]
[1758294667670,0.242,4467.9,4467.8,0.8495]
[1758294667864,0.45671059,4467.9,4467.8,0.8495]
[1758294668371,0.242,4467.9,4467.8,0.8495]
[1758294673772,0.242,4467.9,4467.2,2.2574]
[1758294673773,43.01946938,4467.9,4467.2,2.2574]
[1758294673977,3.2078,4467.3,4466.6,0.8495]
[1758294674178,3.2078,4466.7,4466.6,0.8495]
[1758294674478,4.16746916,4466.7,4466.6,0.8495]
[1758294674678,8.16746916,4466.7,4465.5,0.3308]
[1758294674977,0.71766916,4466.6,4465.6,0.40288]
[1758294675175,3.2078,4466.1,4465.5,0.3308]
[1758294675373,3.4498,4466.1,4465.9,0.40285]
[1758294675567,3.4498,4466.1,4465.5,0.3308]
[1758294675768,3.4498,4466.1,4465.7,2.2395]
[1758294676366,3.4498,4466.1,4466.0,0.3308]
[1758294676774,3.4498,4466.1,4466.0,1.1803]
[1758294677279,3.66618474,4466.1,4465.5,0.3308]
[1758294677482,3.2078,4465.6,4465.3,0.44789322]
[1758294677675,0.242,4465.5,4465.3,0.44789322]
[1758294679473,0.242,4465.5,4465.4,0.8495]
[1758294679979,1.7568,4465.5,4465.4,0.8495]
[1758294681491,2.5899,4465.5,4465.3,0.44789322]
[1758294681686,1.7568,4465.5,4465.4,0.8495]
[1758294681878,2.5899,4465.5,4465.3,0.44789322]
[1758294682077,1.7568,4465.5,4465.4,0.8495]
[1758294683182,3.2078,4466.6,4466.2,0.8495]
[1758294683485,0.45849242,4466.5,4466.1,0.40283]
[1758294683680,0.242,4466.5,4466.0,0.3308]
[1758294684277,0.242,4466.5,4466.0,0.73364]
[1758294684587,0.242,4466.5,4466.0,0.3308]
[1758294684786,0.242,4466.5,4466.1,0.8495]
[1758294685280,0.21662795,4466.4,4466.1,0.8495]
[1758294685484,3.7439,4466.6,4466.0,0.3308]
[1758294685485,0.45862795,4466.3,4466.0,0.3308]
[1758294685685,3.2078,4465.6,4465.2,2.2397]
[1758294685890,0.8064,4464.2,4463.1,0.8495]
[1758294686181,3.2078,4463.6,4463.2,0.8495]
[1758294686387,0.45862795,4463.5,4463.4,0.10127404]
[1758294686588,0.242,4463.5,4463.4,0.95077404]
[1758294686778,0.8064,4463.9,4463.4,0.95077404]
[1758294686986,0.45830046,4463.8,4463.6,0.8495]
[1758294687180,0.2832,4463.5,4462.1,0.8495]
[1758294687384,3.2078,4462.8,4462.1,0.8495]
[1758294687584,0.242,4462.7,4462.1,0.8495]
[1758294687783,0.242,4462.7,4461.5,0.3308]
[1758294687784,3.2078,4463.3,4463.1,0.8495]
[1758294688084,36.279,4464.1,4463.5,0.3308]
[1758294688286,0.45814866,4464.0,4463.1,0.872]
[1758294688486,0.21614866,4463.9,4463.2,0.872]
[1758294688786,0.21614866,4463.8,4463.2,0.872]
[1758294688981,0.242,4463.7,4463.1,0.872]
[1758294689187,0.242,4463.7,4463.5,0.3624]
[1758294689387,0.242,4463.7,4463.6,0.872]
[1758294689584,0.242,4463.7,4463.5,0.3624]
[1758294689787,0.242,4463.7,4463.6,0.872]
[1758294690283,3.66578613,4463.7,4463.1,0.872]
[1758294690486,3.2078,4463.2,4462.6,0.872]
[1758294690690,0.243,4463.1,4462.6,0.872]
[1758294690986,0.243,4463.1,4463.0,0.3624]
[1758294691192,0.243,4463.1,4463.0,1.2344]
[1758294691786,0.243,4463.1,4463.0,0.872]
[1758294692186,0.243,4463.1,4463.0,1.2344]
[1758294692580,3.2078,4463.7,4463.1,0.872]
[1758294692786,0.45899279,4463.6,4463.0,0.3624]
[1758294692980,0.243,4463.6,4463.0,0.3624]
[1758294693186,0.243,4463.6,4463.0,1.2344]
[1758294693487,0.2159377,4463.5,4463.1,0.872]
[1758294693689,3.2078,4463.2,4463.0,0.3624]
[1758294693987,0.8251,4463.0,4462.2,0.872]
[1758294694189,4.0329,4462.3,4462.0,3.4438]
[1758294694392,0.243,4462.2,4462.1,0.872]
[1758294695789,0.243,4462.2,4462.1,4.872]
[1758294696490,0.243,4462.2,4462.1,0.872]
[1758294697387,0.243,4462.2,4462.1,4.872]
[1758294697994,3.2078,4462.8,4462.6,0.872]
[1758294698289,0.243,4462.7,4462.6,0.872]
[1758294699891,0.243,4462.7,4462.6,4.872]
[1758294700293,3.2078,4463.3,4463.1,0.872]
[1758294700489,0.243,4463.2,4463.1,0.872]
[1758294701394,3.2078,4463.3,4463.1,0.872]
[1758294701587,3.2078,4463.8,4463.5,0.3624]
[1758294701795,0.45914543,4463.7,4463.6,0.872]
[1758294702295,3.2078,4464.6,4464.5,1.2344]
[1758294702591,0.45934947,4464.6,4464.5,1.2344]
[1758294702894,0.21634947,4464.6,4464.5,1.2344]
[1758294703097,3.2078,4465.3,4464.6,0.872]
[1758294703286,0.96127247,4465.2,4465.0,0.3624]
[1758294703486,0.96127247,4465.1,4465.0,1.2344]
[1758294703685,0.45956933,4465.1,4465.0,1.2344]
[1758294704792,0.243,4465.1,4465.0,1.2344]
[1758294704991,3.2078,4465.9,4465.6,0.872]
[1758294705299,0.8251,4465.7,4465.0,0.3624]
[1758294705591,0.71863516,4465.6,4465.1,0.872]
[1758294705790,0.96063516,4465.5,4465.1,0.872]
[1758294705992,0.96063516,4465.5,4465.0,0.3624]
[1758294705993,0.71863516,4465.4,4465.0,0.3624]
[1758294706191,0.71863516,4465.4,4464.8,2.241]
[1758294706192,0.71863516,4465.3,4464.8,2.241]
[1758294706396,4.0329,4464.9,4464.8,2.241]
[1758294706691,0.8251,4464.8,4463.0,0.3624]
[1758294706896,3.2078,4463.8,4463.6,0.872]
[1758294707091,0.21667596,4463.7,4463.6,0.872]
[1758294707287,0.242,4464.2,4464.1,0.40301]
[1758294707495,3.2078,4465.7,4464.1,3.2078]
[1758294707687,0.72283563,4465.6,4465.5,0.3624]
[1758294707886,0.96483563,4465.6,4465.5,1.2344]
[1758294708086,0.46265182,4465.6,4465.5,1.2344]
[1758294708289,0.46265182,4465.6,4465.5,0.872]
[1758294708696,1.79002272,4465.6,4465.2,0.872]
[1758294708896,1.54802272,4465.5,4465.2,0.872]
[1758294709095,0.22065182,4465.4,4465.1,3.2078]
[1758294709300,0.22065182,4465.3,4465.2,0.872]
[1758294709499,0.242,4465.6,4465.2,0.872]
[1758294709796,0.22070308,4465.5,4465.2,0.872]
[1758294710104,0.22070308,4465.4,4465.1,3.2078]
[1758294710397,3.2078,4465.2,4464.9,2.2406]
[1758294710596,0.8251,4465.0,4464.9,2.2406]
[1758294710797,1.54820254,4465.0,4464.9,2.2406]
[1758294710987,1.54820254,4465.0,4464.2,0.872]
[1758294711192,0.72310254,4464.9,4464.2,0.872]
[1758294711493,0.72310254,4464.8,4464.2,0.872]
[1758294711693,0.96510254,4464.7,4464.2,0.872]
[1758294711891,0.72310254,4464.6,4464.2,0.872]
[1758294712090,0.72310254,4464.6,4463.5,0.3624]
[1758294712091,0.8251,4464.4,4464.0,0.872]
[1758294712297,0.96735041,4464.3,4463.6,4.0798]
[1758294712496,0.72535041,4464.2,4463.6,4.0798]
[1758294712691,0.22070308,4464.1,4463.7,0.872]
[1758294712994,3.2078,4465.0,4464.1,0.872]
[1758294713202,0.96743619,4464.9,4464.2,3.2078]
[1758294713494,0.72543619,4464.8,4464.5,0.3624]
[1758294713699,0.72543619,4464.7,4464.6,0.872]
[1758294713901,0.22080551,4464.7,4464.6,0.872]
[1758294714102,0.49070764,4464.7,4464.6,0.872]
[1758294714297,0.22080551,4464.7,4464.6,0.872]
[1758294714695,0.22080551,4464.8,4464.6,0.872]
[1758294714890,0.22080551,4464.8,4464.7,4.0798]
[1758294715496,0.46280551,4464.8,4464.7,4.0798]
[1758294716195,0.242,4464.8,4464.7,4.0798]
[1758294716598,0.242,4464.8,4464.7,8.0798]
[1758294716800,0.242,4465.4,4465.2,0.40291]
[1758294717001,0.242,4465.5,4465.4,0.872]
[1758294717202,0.46329007,4465.5,4465.4,0.872]
[1758294717904,29.36856743,4466.3,4466.0,0.3624]
[1758294718200,2.07817293,4466.2,4464.7,0.872]
[1758294718503,3.2078,4465.9,4464.7,0.872]
[1758294718704,0.1373,4465.7,4465.4,2.2408]
[1758294718902,0.95525293,4465.6,4465.4,2.2408]
[1758294719105,0.243,4465.6,4465.5,0.9657]
[1758294719409,0.95503687,4465.6,4465.0,1.3377]
[1758294719702,0.71203687,4465.5,4465.0,0.372]
[1758294719904,0.22118711,4465.4,4465.0,0.372]
[1758294720107,0.22118711,4465.3,4465.0,0.372]
[1758294720298,0.22118711,4465.2,4465.1,0.9657]
[1758294720495,3.2078,4467.0,4466.5,0.372]
[1758294720699,0.71250132,4466.6,4466.5,1.3377]
[1758294720902,1.09280132,4466.6,4466.0,3.5798]
[1758294721196,0.22133875,4466.5,4466.1,0.9657]
[1758294721402,0.22133875,4466.5,4466.3,1.36851]
[1758294721596,0.243,4466.6,4466.5,1.7405]
[1758294721804,0.243,4466.6,4466.5,4.5455]
[1758294722197,0.1373,4468.4,4467.0,0.40275]
[1758294722398,0.75672306,4468.3,4468.1,0.9657]
[1758294722602,0.5355,4468.3,4468.1,0.9657]
[1758294722800,0.5355,4468.3,4468.0,3.2078]
[1758294722997,0.22121847,4468.2,4468.1,0.9657]
[1758294723197,0.5355,4468.3,4468.1,0.9657]
[1758294724297,4.22086261,4468.2,4467.5,1.3377]
[1758294724502,4.22086261,4468.2,4467.0,0.372]
[1758294724503,0.3803,4468.0,4467.2,2.2408]
[1758294724703,0.84416261,4467.9,4467.3,0.9657]
[1758294725011,0.22086261,4467.8,4467.2,2.2408]
[1758294725204,0.22086261,4467.7,4467.3,0.9657]
[1758294725405,0.22086261,4467.6,4467.2,2.2408]
[1758294725605,0.243,4467.9,4467.3,0.9657]
[1758294725805,0.22086734,4467.8,4467.3,0.9657]
[1758294726002,0.22086734,4467.8,4467.2,5.4486]
[1758294726003,0.22086734,4467.7,4467.6,0.9657]
[1758294726310,0.243,4467.9,4467.6,0.9657]
[1758294726502,0.243,4467.9,4467.8,4.1735]
[1758294726710,0.4638395,4467.9,4467.2,0.9657]
[1758294726904,0.2208395,4467.8,4467.2,0.9657]
[1758294727108,0.6011395,4467.7,4467.2,0.9657]
[1758294727302,0.2208395,4467.6,4467.2,0.9657]
[1758294727499,0.2208395,4467.5,4467.1,3.2078]
[1758294727705,0.243,4467.9,4467.2,0.9657]
[1758294727912,0.22089443,4467.8,4467.2,0.9657]
[1758294728108,0.22089443,4467.7,4467.1,3.2078]
[1758294728304,0.22089443,4467.6,4467.1,3.2078]
[1758294728511,0.243,4467.9,4467.2,0.9657]
[1758294728806,0.22094319,4467.8,4467.2,0.9657]
[1758294729009,3.2078,4467.6,4466.6,4.1735]
[1758294729203,0.71129993,4467.5,4466.7,0.9657]
[1758294729409,0.46394319,4467.4,4467.1,0.9657]
[1758294729602,0.243,4467.4,4467.1,0.9657]
[1758294730007,0.243,4467.4,4467.3,0.9657]
[1758294730211,1.93367563,4470.1,4467.2,3.2078]
[1758294730212,0.243,4468.0,4467.6,0.9657]
[1758294730414,0.243,4468.0,4467.9,0.9657]
[1758294730615,0.243,4468.6,4468.0,0.372]
[1758294730810,0.243,4468.6,4468.1,0.9657]
[1758294731212,0.243,4468.6,4468.2,1.36835]
[1758294731418,0.243,4469.1,4468.3,0.40263]
[1758294731623,0.243,4469.1,4469.0,4.5455]
[1758294732225,0.46407395,4469.1,4469.0,1.3377]
[1758294733220,0.46407395,4469.1,4467.7,0.243]
[1758294733221,4.1523,4468.4,4465.2,3.2078]
[1758294733416,3.2078,4465.9,4465.2,3.2078]
[1758294733611,0.244,4465.8,4465.3,3.2301]
[1758294733817,0.244,4465.8,4465.4,2.2376]
[1758294734218,0.244,4465.8,4465.2,3.2078]
[1758294734518,0.244,4465.8,4465.4,2.2376]
[1758294735020,0.25235855,4465.7,4464.8,2.2399]
[1758294735219,3.2078,4465.3,4465.1,3.2033]
[1758294735420,0.25235855,4465.2,4465.1,0.9657]
[1758294735617,1.44085855,4465.2,4464.8,2.2399]
[1758294735818,1.19685855,4465.1,4464.8,2.2399]
[1758294736018,0.25235855,4465.0,4464.8,3.2056]
[1758294736323,0.244,4465.2,4464.8,3.2056]
[1758294736324,0.25235855,4464.9,4464.8,3.2056]
[1758294736520,0.25235855,4464.9,4464.8,2.2399]
[1758294736521,1.19685855,4464.9,4464.8,2.2399]
[1758294737920,5.19685855,4464.9,4464.1,0.0179]
[1758294738123,4.1523,4464.2,4464.1,0.0179]
[1758294738320,3.70415855,4464.2,4464.1,0.0179]
[1758294738523,3.70415855,4464.2,4464.1,0.9836]
[1758294739424,3.70415855,4464.2,4464.1,0.9657]
[1758294740026,3.70415855,4464.2,4461.8,3.2078]
[1758294740027,0.3748,4464.0,4461.8,3.2078]
[1758294740328,0.9445,4462.0,4461.1,3.2078]
[1758294740516,3.2078,4462.1,4462.0,2.2376]
[1758294740715,3.71368357,4462.1,4462.0,2.2376]
[1758294741022,3.71368357,4462.1,4461.1,3.2078]
[1758294741227,0.26088357,4462.0,4461.7,2.2376]
[1758294741525,4.3973,4462.1,4461.7,2.2376]
[1758294741719,0.26062965,4462.0,4461.8,0.9925]
[1758294741920,3.4528,4462.1,4461.7,0.9925]
[1758294742120,3.4528,4462.1,4461.6,2.2415]
[1758294742121,0.9445,4461.9,4461.6,2.2415]
[1758294742315,0.2606268,4461.8,4461.6,4.4791]
[1758294742522,3.2078,4462.1,4461.8,0.9657]
[1758294742826,0.2603497,4462.0,4461.7,0.9925]
[1758294743021,0.2603483,4461.9,4461.6,2.2415]
[1758294743225,1.1885,4461.8,4461.7,0.9925]
[1758294743421,0.244,4461.8,4461.7,2.2376]
[1758294743627,0.244,4461.8,4461.7,1.9582]
[1758294743829,0.244,4461.8,4461.7,4.1958]
[1758294744421,3.2078,4462.7,4461.7,11.4036]
[1758294744621,0.3748,4461.5,4461.0,0.02081075]
[1758294744822,0.3748,4461.5,4459.1,0.047]
[1758294744823,0.3748,4461.0,4459.1,0.047]
[1758294745018,3.2078,4460.0,4459.1,0.047]
[1758294745225,3.2078,4460.0,4459.1,0.27121]
[1758294745415,3.2078,4460.0,4459.5,0.40342]
[1758294745623,3.2078,4460.0,4459.9,2.2376]
[1758294745815,0.234,4460.4,4459.9,2.2376]
[1758294746015,0.234,4460.4,4460.3,2.2376]
[1758294746417,0.234,4460.4,4459.5,3.2078]
[1758294746620,1.1785,4460.4,4460.3,2.2376]
[1758294747131,1.1785,4460.4,4459.5,3.3278]
[1758294747421,1.1785,4460.4,4460.3,2.2376]
[1758294747622,1.1785,4460.4,4459.5,3.3278]
[1758294747822,2.3913,4460.5,4460.2,0.9657]
[1758294748016,2.3913,4460.5,4460.4,2.2376]
[1758294748517,2.3913,4460.5,4460.1,0.40337]
[1758294748722,0.3907,4460.0,4458.1,0.9466]
[1758294748920,3.2078,4459.0,4458.5,0.9466]
[1758294749329,3.2078,4459.6,4458.6,0.9466]
[1758294749624,3.2078,4459.6,4458.7,0.247]
[1758294749824,3.2078,4459.6,4458.6,1.59711]
[1758294750030,3.2078,4459.6,4458.9,0.40348]
[1758294750229,0.247,4459.7,4459.2,3.2078]
[1758294750425,0.247,4459.7,4459.3,0.9466]
[1758294750631,0.247,4459.7,4459.2,3.2078]
[1758294750828,0.247,4459.7,4459.4,0.9466]
[1758294751128,0.247,4459.7,4459.6,0.9466]
[1758294751326,0.9285,4460.4,4459.6,0.9466]
[1758294751532,0.247,4460.3,4459.6,0.9466]
[1758294752131,0.9285,4460.4,4459.6,0.9466]
[1758294752328,0.9285,4460.4,4459.6,1.35002]
[1758294752526,0.9285,4460.4,4459.8,0.4034]
[1758294752925,0.9285,4460.4,4459.7,4.1544]
[1758294753131,0.247,4460.6,4460.2,0.9466]
[1758294753428,0.247,4460.6,4460.4,0.9466]
[1758294753828,0.9285,4460.9,4460.3,3.1891]
[1758294754029,0.9285,4460.9,4460.3,2.2425]
[1758294754832,0.247,4461.1,4460.6,0.40332]
[1758294755025,0.247,4461.1,4460.7,3.61112]
[1758294755227,3.5826,4461.5,4460.8,0.9466]
[1758294755427,36.317,4462.0,4461.4,3.2078]
[1758294755628,0.9285,4461.9,4461.4,3.2078]
[1758294755830,1.3192,4462.0,4461.4,3.61105]
[1758294756032,0.6377,4462.0,4461.3,0.9466]
[1758294756334,0.9285,4461.9,4461.5,0.40324]
[1758294756537,0.247,4462.0,4461.8,0.40321]
[1758294756736,0.247,4462.0,4461.4,3.2078]
[1758294756934,0.9285,4461.9,4461.4,3.2078]
[1758294757132,0.9285,4461.9,4461.5,2.2425]
[1758294757333,3.8455,4462.0,4461.5,2.2425]
[1758294757733,0.9285,4461.9,4461.5,2.64574]
[1758294758033,0.3907,4462.0,4461.5,2.2425]
[1758294758227,1.18718795,4461.9,4461.6,0.9466]
[1758294758431,0.247,4462.1,4461.6,0.9466]
[1758294758630,3.5985,4462.5,4461.6,0.9466]
[1758294758631,3.2078,4462.5,4462.1,0.40319]
[1758294758832,0.25888572,4462.4,4461.6,0.9466]
[1758294759032,1.43438572,4462.3,4461.6,0.9466]
[1758294759236,0.9285,4462.1,4461.6,0.9466]
[1758294759439,0.9285,4462.1,4461.5,5.4503]
[1758294760036,0.247,4462.3,4461.5,5.4503]
[1758294760243,0.25902457,4462.2,4461.6,0.9466]
[1758294760432,1.1745,4462.4,4462.1,0.40319]
[1758294760637,0.25930827,4462.3,4462.2,0.9466]
[1758294760840,1.1755,4463.0,4462.5,0.40315]
[1758294761043,0.25933756,4462.9,4462.8,0.9466]
[1758294761844,0.9285,4462.8,4462.5,3.2078]
[1758294762043,0.9285,4462.6,4462.5,3.2078]
[1758294762240,1.18783756,4462.6,4462.5,3.2078]
[1758294762544,0.25933756,4462.6,4462.5,4.1544]
[1758294762746,0.25933756,4462.9,4462.6,3.1891]
[1758294763042,0.3907,4462.5,4460.7,3.2078]
[1758294763246,3.2078,4461.1,4460.4,0.40334]
[1758294763441,1.18888941,4461.0,4460.0,0.9466]
[1758294763742,0.26038941,4460.9,4460.7,0.40331]
[1758294763944,0.26038941,4460.8,4460.7,1.34991]
[1758294764138,0.26038941,4460.8,4460.5,0.40334]
[1758294764334,0.3907,4460.5,4459.1,1.35006]
[1758294764538,0.9285,4459.8,4458.8,3.2078]
[1758294764745,0.26038941,4459.7,4458.9,0.9466]
[1758294764938,0.26038941,4459.7,4459.1,0.40346]
[1758294765133,0.26038941,4459.7,4459.2,0.40345]
[1758294765339,0.9285,4460.3,4459.4,0.9466]
[1758294765534,0.9285,4460.3,4459.5,0.40342]
[1758294765735,0.9285,4460.3,4459.4,0.9466]
[1758294766448,0.9285,4460.3,4459.7,0.40341]
[1758294766839,0.9285,4460.3,4459.8,0.4034]
[1758294767244,0.9285,4460.3,4460.0,2.2424]
[1758294767447,0.9285,4460.3,4460.1,0.40338]
[1758294767943,0.9285,4460.3,4460.0,2.2424]
[1758294768448,0.9285,4460.3,4460.0,2.64578]
[1758294768640,0.247,4460.4,4460.0,2.64578]
[1758294769042,0.9285,4460.3,4460.1,0.40337]
[1758294769442,0.247,4460.7,4460.5,0.6762]
[1758294769644,0.49223889,4460.6,4460.5,0.6762]
[1758294769843,0.247,4460.7,4460.5,0.6762]
[1758294770042,3.2078,4461.4,4460.6,0.9466]
[1758294770340,3.2078,4462.4,4461.8,1.34982]
[1758294770541,3.2078,4462.4,4461.9,0.40321]
[1758294770849,0.247,4462.6,4462.3,0.40317]
[1758294771049,0.247,4462.6,4462.4,0.9466]
[1758294771253,0.247,4462.6,4462.5,0.9466]
[1758294771443,3.2078,4462.9,4461.9,1.00804]
[1758294771746,39.7788,4463.5,4462.7,0.9466]
[1758294771950,0.49185685,4463.4,4462.7,0.9466]
[1758294772246,0.247,4463.5,4463.0,0.79401]
[1758294772438,0.247,4463.5,4463.2,0.40309]
[1758294772645,0.247,4463.5,4463.4,0.9466]
[1758294773748,0.3907,4464.5,4463.4,4.1544]
[1758294773947,0.73842384,4464.4,4463.5,0.40306]
[1758294774153,0.49142384,4464.3,4463.4,4.1544]
[1758294774451,0.49142384,4464.3,4463.4,4.55747]
[1758294774642,0.49142384,4464.3,4463.8,0.9466]
[1758294774845,3.2078,4464.8,4464.0,0.40302]
[1758294775040,3.2078,4464.8,4464.0,1.34962]
[1758294775252,3.2078,4464.8,4464.2,0.9466]
[1758294775642,0.247,4464.9,4464.6,3.2078]
[1758294775843,0.247,4464.9,4464.7,0.9466]
[1758294776245,0.247,4464.9,4464.0,3.5987]
[1758294776246,0.247,4464.9,4464.3,0.9466]
[1758294776857,0.247,4465.1,4465.0,0.4292]
[1758294777151,0.247,4465.1,4465.0,1.3758]
[1758294777350,0.48435255,4465.1,4465.0,1.3758]
[1758294777554,1.01965255,4465.1,4465.0,1.3758]
[1758294777855,0.77265255,4465.1,4465.0,5.7667]
[1758294778050,0.5353,4465.1,4465.0,5.7667]
[1758294778252,3.2078,4466.3,4466.0,0.40284]
[1758294778448,0.23716734,4466.2,4465.6,1.0625]
[1758294778648,0.23716734,4466.1,4466.0,1.0625]
[1758294778847,0.23718518,4466.3,4466.0,0.40284]
[1758294779053,0.23718407,4466.2,4466.1,1.0306]
[1758294779351,3.4538,4467.0,4466.1,1.0306]
[1758294779655,1.0206,4466.4,4465.7,0.4292]
[1758294779847,0.48299121,4466.3,4465.7,0.4292]
[1758294780047,3.7992,4466.0,4465.4,4.2384]
[1758294780254,0.23699121,4465.9,4465.4,3.2078]
[1758294780450,0.23699121,4465.9,4465.6,1.0306]
[1758294780754,3.2078,4466.7,4466.1,1.0306]
[1758294781054,0.23710918,4466.6,4466.0,1.4587]
[1758294781252,0.23710918,4466.5,4466.4,1.0306]
[1758294781453,0.246,4466.8,4466.5,0.4058]
[1758294781652,3.2078,4467.2,4466.6,1.0306]
[1758294781850,1.25754003,4467.1,4466.0,0.4281]
[1758294782051,3.2078,4466.7,4466.0,0.0223]
[1758294782251,0.3907,4468.0,4466.5,1.4364]
[1758294782252,0.21528162,4466.6,4466.5,1.4364]
[1758294782444,0.246,4467.6,4466.8,1.0306]
[1758294782949,1.0206,4467.5,4466.8,1.0306]
[1758294783151,1.4315,4467.5,4466.5,0.80859]
[1758294783351,1.4315,4467.5,4466.5,0.4058]
[1758294783558,1.4315,4467.5,4466.0,3.2301]
[1758294783559,3.2078,4467.3,4466.0,3.2301]
[1758294783757,4.2284,4466.1,4466.0,0.0223]
[1758294783955,4.4754,4466.1,4466.0,0.0223]
[1758294784153,4.4754,4466.1,4465.2,1.0306]
[1758294784548,0.4109,4466.0,4465.1,3.2078]
[1758294784762,1.0206,4465.9,4465.1,3.2078]
[1758294785258,1.0206,4465.9,4465.3,2.2397]
[1758294786259,3.2078,4465.5,4465.3,2.2397]
[1758294786456,1.0206,4465.4,4465.3,2.2397]
[1758294786962,5.0206,4465.4,4465.3,2.2397]
[1758294787462,5.0206,4465.4,4464.8,0.0223]
[1758294787662,1.0206,4465.4,4464.8,0.0223]
[1758294788858,3.4538,4465.5,4465.1,0.40292]
[1758294789064,0.246,4465.5,4465.1,1.0306]
[1758294789258,0.246,4465.5,4465.2,1.0306]
[1758294789452,0.246,4465.5,4465.2,1.43351]
[1758294789653,0.246,4465.5,4465.4,1.0306]
[1758294790064,3.2078,4466.1,4465.5,3.04839]
[1758294790266,3.2078,4466.1,4465.5,2.6455]
[1758294790559,3.2078,4466.1,4465.5,2.2397]
[1758294791064,0.246,4466.0,4465.7,1.43346]
[1758294791263,3.2078,4466.1,4466.0,1.9937]
[1758294791459,3.4538,4466.1,4466.0,1.9937]
[1758294791855,4.2284,4466.1,4466.0,1.9937]
[1758294792060,1.2666,4466.1,4466.0,1.9937]
[1758294793656,8.4744,4466.1,4466.0,1.9937]
[1758294794266,8.4744,4466.1,4465.3,0.4029]
[1758294794267,4.4744,4466.1,4465.3,0.4029]
[1758294795163,4.4744,4466.1,4465.4,0.40289]
[1758294795559,4.4744,4466.1,4465.2,3.0243]
[1758294795763,4.2284,4466.1,4465.4,0.40289]
[1758294795962,0.246,4466.0,4465.5,1.0306]
[1758294796166,1.0206,4465.9,4465.6,1.0306]
[1758294796964,0.246,4466.0,4465.6,1.43348]
[1758294797269,0.246,4466.0,4465.6,1.0306]
[1758294797270,0.23968152,4465.9,4465.6,1.0306]
[1758294797466,1.26028152,4465.8,4465.6,1.0306]
[1758294797671,0.48568152,4465.7,4465.6,1.0306]
[1758294800068,0.23968152,4465.7,4465.6,4.2384]
[1758294800368,0.4109,4468.0,4466.5,0.4058]
[1758294800369,0.245,4466.6,4466.5,0.4058]
[1758294800566,0.245,4466.9,4466.8,0.40276]
[1758294801277,0.245,4466.9,4466.8,1.43336]
[1758294801874,0.245,4467.4,4467.2,0.40273]
[1758294802076,0.245,4467.4,4467.3,1.0306]
[1758294802574,3.4528,4467.4,4467.3,1.0306]
[1758294802770,4.4734,4467.4,4467.0,2.3995]
[1758294802978,0.49183167,4467.3,4467.0,1.9937]
[1758294803279,1.51243167,4467.2,4467.0,1.9937]
[1758294803479,0.49183167,4467.1,4467.0,3.0243]
[1758294803980,0.4109,4468.0,4467.1,1.0306]
[1758294804180,0.4109,4468.0,4467.0,2.3995]
[1758294804181,0.49232026,4467.9,4467.4,1.0306]
[1758294804481,0.245,4468.2,4467.8,1.0306]
[1758294804671,0.49238668,4468.1,4467.8,1.0306]
[1758294804870,0.49238668,4468.0,4467.6,0.40269]
[1758294805081,0.245,4468.2,4467.7,0.40269]
[1758294805277,0.49240265,4468.1,4467.8,1.0306]
[1758294805479,0.49240265,4468.0,4467.7,0.40269]
[1758294805676,0.245,4468.2,4467.6,1.0306]
[1758294805879,1.0206,4468.0,4467.8,1.9937]
[1758294806078,0.49226693,4467.9,4467.8,3.0243]
[1758294806878,1.51286693,4467.9,4467.8,1.9937]
[1758294807971,1.51286693,4467.9,4467.2,1.0306]
[1758294808176,3.2078,4467.7,4467.1,3.0243]